lending/lending_fUSD_20251218
["ID","MTS","AMOUNT","RATE_DAILY","PERIOD"]
[398954656,1766019045075,-150.0,0.00038923,7]
[398954657,1766019045085,-150.0,0.0003893,7]
[398954658,1766019045094,-167.36306111,0.00038956,7]
[398954659,1766019045103,-150.0,0.00038967,7]
[398954660,1766019045112,-150.0,0.00038967,7]
[398954661,1766019045121,-150.0,0.00038989,7]
[398954662,1766019045130,-150.0,0.00038991,7]
[398954663,1766019045139,-167.36306111,0.00038999,7]
[398954664,1766019045149,-500.0,0.00038999,60]
[398954665,1766019045159,-460.64,0.00038999,60]
[398954666,1766019045168,-500.0,0.00038999,60]
[398954667,1766019045178,-500.0,0.00038999,60]
[398954668,1766019045187,-500.0,0.00038999,60]
[398954669,1766019045197,-150.0,0.00039019,7]
[398954670,1766019045207,-150.0,0.00039024,7]
[398954671,1766019045217,-150.0,0.0003903,7]
[398954672,1766019045226,-150.0,0.0003903,7]
[398954673,1766019045235,-167.36306111,0.00039042,7]
[398954674,1766019045245,-272.99,0.00039047,2]
[398954675,1766019045255,-150.0,0.00039061,7]
[398954676,1766019045264,-150.0,0.00039066,7]
[398954677,1766019045274,-150.0,0.00039071,7]
[398954678,1766019045283,-167.36306111,0.00039085,7]
[398954679,1766019045292,-150.0,0.00039086,7]
[398954680,1766019045302,-150.0,0.00039094,7]
[398954681,1766019045311,-150.0,0.00039094,7]
[398954682,1766019045324,-150.0,0.00039119,7]
[398954683,1766019045334,-150.0,0.00039119,7]
[398954684,1766019045343,-167.36306111,0.00039127,7]
[398954685,1766019045352,-150.0,0.00039133,7]
[398954686,1766019045361,-150.0,0.00039144,7]
[398954687,1766019045370,-150.0,0.00039151,7]
[398954688,1766019045379,-150.0,0.00039157,7]
[398954689,1766019045389,-150.0,0.00039157,7]
[398954690,1766019045399,-721.45,0.00039162,120]
[398954691,1766019045409,-167.36306111,0.0003917,7]
[398954692,1766019045418,-150.0,0.00039205,7]
[398954693,1766019045427,-167.36306111,0.00039213,7]
[398954694,1766019045437,-150.0,0.00039213,7]
[398954695,1766019045447,-150.0,0.0003922,7]
[398954696,1766019045456,-150.0,0.0003922,7]
[398954697,1766019045465,-150.0,0.00039231,7]
[398954698,1766019045474,-150.0,0.0003925,7]
[398954699,1766019045483,-150.0,0.0003925,7]
[398954700,1766019045493,-167.36306111,0.00039256,7]
[398954701,1766019045508,-150.0,0.00039269,7]
[398954702,1766019045518,-150.0,0.00039277,7]
[398954703,1766019045528,-150.0,0.00039284,7]
[398954704,1766019045541,-150.0,0.00039284,7]
[398954705,1766019045553,-167.36306111,0.00039299,7]
[398954706,1766019045563,-150.0,0.00039308,7]
[398954707,1766019045572,-150.0,0.00039311,7]
[398954708,1766019045584,-150.0,0.00039332,7]
[398954709,1766019045594,-150.0,0.00039332,7]
[398954710,1766019045605,-150.0,0.00039332,7]
[398954711,1766019045615,-167.36306111,0.00039342,7]
[398954712,1766019045624,-150.0,0.00039347,7]
[398954713,1766019045635,-150.0,0.00039347,7]
[398954714,1766019045645,-150.0,0.0003935,7]
[398954715,1766019045654,-167.36306111,0.00039385,7]
[398954716,1766019045664,-150.0,0.00039392,7]
[398954717,1766019045672,-150.0,0.00039394,7]
[398954718,1766019045681,-974.69560545,0.00039401,2]
[398954719,1766019045691,-150.0,0.00039402,7]
[398954720,1766019045700,-150.0,0.00039402,7]
[398954721,1766019045709,-150.0,0.00039411,7]
[398954722,1766019045719,-150.0,0.00039411,7]
[398954723,1766019045730,-150.0,0.00039413,7]
[398954724,1766019045738,-150.0,0.00039422,7]
[398954725,1766019045747,-167.36306111,0.00039428,7]
[398954726,1766019045756,-3804.9,0.00039452,120]
[398954727,1766019045764,-167.36306111,0.00039471,7]
[398954728,1766019045773,-150.0,0.00039472,7]
[398954729,1766019045782,-150.0,0.00039474,7]
[398954730,1766019045791,-150.0,0.00039474,7]
[398954731,1766019045800,-150.0,0.00039494,7]
[398954732,1766019045809,-150.0,0.00039497,7]
[398954733,1766019045818,-167.36306111,0.00039514,7]
[398954734,1766019045827,-150.0,0.00039519,7]
[398954735,1766019045836,-150.0,0.00039538,7]
[398954736,1766019045845,-150.0,0.00039538,7]
[398954737,1766019045854,-7315.5165995,0.00039542,2]
[398954738,1766019045862,-150.0,0.00039552,7]
[398954739,1766019045872,-167.36306111,0.00039557,7]
[398954740,1766019045881,-150.0,0.00039566,7]
[398954741,1766019045890,-151.0,0.00039574,14]
[398954742,1766019045899,-150.0,0.00039577,7]
[398954743,1766019045908,-150.0,0.00039577,7]
[398954744,1766019045917,-150.0,0.00039591,7]
[398954745,1766019045926,-150.0,0.00039597,7]
[398954746,1766019045936,-167.36306111,0.000396,7]
[398954748,1766019045945,-150.0,0.00039601,7]
[398954750,1766019045953,-150.0,0.00039601,7]
[398954751,1766019045963,-150.0,0.00039632,7]
[398954752,1766019045972,-150.0,0.00039638,7]
[398954753,1766019045982,-167.36306111,0.00039643,7]
[398954754,1766019045991,-150.0,0.00039644,7]
[398954755,1766019046000,-654.65,0.00039654,2]
[398954756,1766019046009,-150.0,0.00039665,7]
[398954757,1766019046018,-150.0,0.00039665,7]
[398954758,1766019046027,-167.36306111,0.00039686,7]
[398954759,1766019046037,-150.0,0.00039686,7]
[398954760,1766019046046,-150.0,0.00039686,7]
[398954761,1766019046055,-150.0,0.0003971,7]
[398954762,1766019046065,-150.0,0.00039713,7]
[398954763,1766019046074,-150.0,0.00039728,7]
[398954764,1766019046084,-150.0,0.00039728,7]
[398954765,1766019046094,-167.36306111,0.00039729,7]
[398954766,1766019046103,-150.0,0.0003974,7]
[398954767,1766019046113,-150.0,0.00039769,7]
[398954768,1766019046123,-167.36306111,0.00039772,7]
[398954769,1766019046133,-150.0,0.0003978,7]
[398954770,1766019046142,-150.0,0.00039782,7]
[398954771,1766019046152,-150.0,0.00039792,7]
[398954772,1766019046162,-150.0,0.00039792,7]
[398954773,1766019046172,-150.0,0.00039793,7]
[398954774,1766019046182,-167.36306111,0.00039815,7]
[398954775,1766019046192,-1000.0,0.00039817,14]
[398954776,1766019046202,-150.0,0.00039854,7]
[398954777,1766019046212,-150.0,0.00039855,7]
[398954778,1766019046222,-150.0,0.00039855,7]
[398954779,1766019046232,-167.36306111,0.00039858,7]
[398954780,1766019046242,-150.0,0.00039863,7]
[398954781,1766019046252,-150.0,0.00039863,7]
[398954782,1766019046262,-150.0,0.00039873,7]
[398954783,1766019046272,-150.0,0.00039875,7]
[398954784,1766019046282,-150.0,0.00039894,7]
[398954785,1766019046291,-167.36306111,0.00039901,7]
[398954786,1766019046301,-150.0,0.00039904,7]
[398954787,1766019046310,-150.0,0.00039904,7]
[398954788,1766019046320,-150.0,0.00039919,7]
[398954789,1766019046331,-150.0,0.00039919,7]
[398954790,1766019046341,-150.0,0.00039926,7]
[398954791,1766019046350,-167.36306111,0.00039944,7]
[398954792,1766019046360,-150.0,0.00039953,7]
[398954793,1766019046370,-150.0,0.00039969,7]
[398954794,1766019046382,-150.0,0.00039969,7]
[398954795,1766019046393,-1000.0,0.00039973,30]
[398954796,1766019046403,-150.0,0.00039982,7]
[398954797,1766019046412,-150.0,0.00039982,7]
[398954798,1766019046421,-167.36306111,0.00039986,7]
[398954799,1766019046431,-150.0,0.00039998,7]
[398954800,1766019046441,-3500.0,0.0004,2]
[398954801,1766019046450,-150.0,0.00040019,7]
[398954802,1766019046459,-167.36306111,0.00040029,7]
[398954803,1766019046468,-150.0,0.00040033,7]
[398954804,1766019046478,-150.0,0.00040045,7]
[398954805,1766019046487,-150.0,0.00040045,7]
[398954806,1766019046496,-150.0,0.00040064,7]
[398954807,1766019046510,-150.0,0.00040067,7]
[398954808,1766019046525,-150.0,0.0004007,7]
[398954809,1766019046535,-167.36306111,0.00040072,7]
[398954810,1766019046544,-1000.0,0.00040091,14]
[398954811,1766019046556,-150.0,0.00040109,7]
[398954812,1766019046565,-150.0,0.00040109,7]
[398954813,1766019046574,-150.0,0.00040114,7]
[398954814,1766019046583,-167.36306111,0.00040115,7]
[398954815,1766019046594,-150.0,0.00040129,7]
[398954816,1766019046603,-150.0,0.00040142,7]
[398954817,1766019046612,-150.0,0.00040144,7]
[398954818,1766019046621,-167.36306111,0.00040158,7]
[398954819,1766019046630,-150.0,0.00040158,7]
[398954820,1766019046639,-150.0,0.00040172,7]
[398954821,1766019046647,-150.0,0.00040172,7]
[398954822,1766019046656,-150.0,0.00040194,7]
[398954823,1766019046664,-167.36306111,0.00040201,7]
[398954824,1766019046673,-150.0,0.00040214,7]
[398954825,1766019046682,-150.0,0.00040231,7]
[398954826,1766019046691,-150.0,0.00040231,7]
[398954827,1766019046700,-150.0,0.00040236,7]
[398954828,1766019046708,-150.0,0.00040236,7]
[398954829,1766019046718,-1789.912,0.0004024,57]
[398954830,1766019046727,-167.36306111,0.00040244,7]
[398954831,1766019046736,-150.0,0.00040253,7]
[398954832,1766019046744,-150.0,0.00040253,7]
[398954833,1766019046753,-150.0,0.00040269,7]
[398954834,1766019046762,-150.0,0.00040274,7]
[398954835,1766019046771,-150.0,0.00040286,7]
[398954836,1766019046780,-167.36306111,0.00040287,7]
[398954837,1766019046789,-150.0,0.00040299,7]
[398954838,1766019046798,-150.0,0.00040299,7]
[398954839,1766019046807,-2000.0,0.000403,2]
[398954840,1766019046815,-167.36306111,0.0004033,7]
[398954841,1766019046825,-150.0,0.00040347,7]
[398954842,1766019046835,-150.0,0.00040354,7]
[398954843,1766019046844,-150.0,0.00040358,7]
[398954844,1766019046853,-150.0,0.00040363,7]
[398954845,1766019046862,-150.0,0.00040363,7]
[398954846,1766019046871,-167.36306111,0.00040373,7]
[398954847,1766019046880,-150.0,0.00040395,7]
[398954848,1766019046891,-150.0,0.00040395,7]
[398954849,1766019046901,-150.0,0.00040395,7]
[398954850,1766019046910,-150.0,0.00040395,7]
[398954851,1766019046920,-150.0,0.00040395,7]
[398954852,1766019046929,-150.0,0.00040395,7]
[398954853,1766019046938,-167.36306111,0.00040416,7]
[398954854,1766019046948,-150.0,0.00040426,7]
[398954855,1766019046957,-150.0,0.00040426,7]
[398954856,1766019046966,-150.0,0.00040431,7]
[398954857,1766019046975,-150.0,0.00040435,7]
[398954858,1766019046985,-150.0,0.00040442,7]
[398954859,1766019046994,-167.36306111,0.00040459,7]
[398954860,1766019047003,-150.0,0.0004049,7]
[398954861,1766019047012,-150.0,0.0004049,7]
[398954862,1766019047021,-167.36306111,0.00040502,7]
[398954863,1766019047030,-150.0,0.00040503,7]
[398954864,1766019047039,-150.0,0.00040515,7]
[398954865,1766019047048,-150.0,0.0004052,7]
[398954866,1766019047057,-150.0,0.00040536,7]
[398954867,1766019047066,-150.0,0.00040536,7]
[398954868,1766019047075,-167.36306111,0.00040545,7]
[398954869,1766019047083,-3804.9,0.00040547,120]
[398954870,1766019047092,-150.0,0.00040553,7]
[398954871,1766019047101,-150.0,0.00040553,7]
[398954872,1766019047111,-150.0,0.00040558,7]
[398954873,1766019047120,-150.0,0.00040558,7]
[398954874,1766019047129,-150.0,0.00040575,7]
[398954875,1766019047138,-167.36306111,0.00040588,7]
[398954876,1766019047147,-150.0,0.00040595,7]
[398954877,1766019047157,-150.0,0.00040617,7]
[398954878,1766019047166,-150.0,0.00040617,7]
[398954879,1766019047176,-167.36306111,0.00040631,7]
[398954880,1766019047185,-150.0,0.00040631,7]
[398954881,1766019047196,-150.0,0.00040645,7]
[398954882,1766019047205,-150.0,0.00040647,7]
[398954883,1766019047214,-150.0,0.0004066,7]
[398954884,1766019047223,-167.36306111,0.00040674,7]
[398954885,1766019047233,-150.0,0.00040675,7]
[398954886,1766019047243,-150.0,0.0004068,7]
[398954887,1766019047253,-150.0,0.0004068,7]
[398954888,1766019047263,-167.36306111,0.00040717,7]
[398954889,1766019047272,-150.0,0.00040719,7]
[398954890,1766019047282,-150.0,0.00040722,7]
[398954891,1766019047292,-150.0,0.00040725,7]
[398954892,1766019047302,-150.0,0.00040744,7]
[398954893,1766019047311,-150.0,0.00040744,7]
[398954894,1766019047321,-150.0,0.00040756,7]
[398954895,1766019047332,-167.36306111,0.0004076,7]
[398954896,1766019047341,-150.0,0.0004077,7]
[398954897,1766019047350,-150.0,0.00040791,7]
[398954898,1766019047360,-167.36306111,0.00040803,7]
[398954899,1766019047369,-150.0,0.00040807,7]
[398954900,1766019047378,-150.0,0.00040807,7]
[398954901,1766019047387,-150.0,0.0004082,7]
[398954902,1766019047396,-150.0,0.0004082,7]
[398954903,1766019047406,-150.0,0.00040836,7]
[398954904,1766019047420,-167.36306111,0.00040845,7]
[398954905,1766019047430,-150.0,0.00040863,7]
[398954906,1766019047438,-150.0,0.0004087,7]
[398954907,1766019047447,-150.0,0.0004087,7]
[398954908,1766019047457,-150.0,0.00040885,7]
[398954909,1766019047466,-150.0,0.00040885,7]
[398954910,1766019047475,-167.36306111,0.00040888,7]
[398954911,1766019047485,-150.0,0.00040895,7]
[398954912,1766019047494,-150.0,0.00040914,7]
[398954913,1766019047507,-150.0,0.00040916,7]
[398954914,1766019047517,-150.0,0.00040926,7]
[398954915,1766019047526,-150.0,0.00040926,7]
[398954916,1766019047535,-167.36306111,0.00040931,7]
[398954917,1766019047544,-150.0,0.00040934,7]
[398954918,1766019047555,-150.0,0.00040934,7]
[398954919,1766019047564,-150.0,0.00040935,7]
[398954920,1766019047574,-167.36306111,0.00040974,7]
[398954921,1766019047584,-10000.0,0.00040995,2]
[398954922,1766019047596,-150.0,0.00040996,7]
[398954923,1766019047607,-150.0,0.00040997,7]
[398954924,1766019047618,-150.0,0.00040997,7]
[398954925,1766019047628,-163.0,0.00041,120]
[398954926,1766019047638,-150.0,0.00041007,7]
[398954927,1766019047648,-150.0,0.00041009,7]
[398954928,1766019047657,-167.36306111,0.00041017,7]
[398954929,1766019047666,-150.0,0.0004102,7]
[398954930,1766019047675,-211.4,0.00041041,7]
[398954931,1766019047685,-150.0,0.00041049,7]
[398954932,1766019047694,-167.36306111,0.0004106,7]
[398954933,1766019047703,-150.0,0.00041061,7]
[398954934,1766019047713,-150.0,0.00041061,7]
[398954935,1766019047723,-1000.0,0.00041067,22]
[398954936,1766019047732,-381.08028479,0.00041068,22]
[398954937,1766019047742,-150.0,0.00041076,7]
[398954938,1766019047751,-150.0,0.00041079,7]
[398954939,1766019047760,-500.0,0.00041095,60]
[398954940,1766019047769,-452.87061415,0.00041095,2]
[398954941,1766019047777,-500.0,0.00041095,60]
[398954942,1766019047786,-500.0,0.00041095,60]
[398954943,1766019047794,-500.0,0.00041095,120]
[398954944,1766019047803,-500.0,0.00041095,120]
[398954945,1766019047812,-500.0,0.00041095,120]
[398954946,1766019047822,-500.0,0.00041095,120]
[398954947,1766019047833,-500.0,0.00041095,120]
[398954948,1766019047842,-500.0,0.00041095,120]
[398954949,1766019047851,-500.0,0.00041095,120]
[398954950,1766019047859,-500.0,0.00041095,120]
[398954951,1766019047868,-500.0,0.00041095,120]
[398954952,1766019047877,-500.0,0.00041095,120]
[398954953,1766019047887,-500.0,0.00041095,120]
[398954954,1766019047895,-500.0,0.00041095,120]
[398954955,1766019047904,-500.0,0.00041095,120]
[398954956,1766019047914,-500.0,0.00041095,120]
[398954957,1766019047924,-500.0,0.00041095,120]
[398954958,1766019047933,-500.0,0.00041095,120]
[398954959,1766019047942,-500.0,0.00041095,120]
[398954960,1766019047953,-500.0,0.00041095,120]
[398954961,1766019047962,-500.0,0.00041095,120]
[398954962,1766019047970,-415.18834225,0.00041095,120]
[398954963,1766019047980,-514.23721699,0.00041095,120]
[398954964,1766019047989,-500.0,0.00041095,8]
[398954965,1766019047999,-500.0,0.00041095,8]
[398954966,1766019048008,-500.0,0.00041095,8]
[398954967,1766019048018,-397.86517034,0.00041095,8]
[398954968,1766019048028,-469.5,0.00041095,120]
[398954969,1766019048037,-469.5,0.00041095,120]
[398954970,1766019048047,-469.5,0.00041095,120]
[398954971,1766019048057,-469.5,0.00041095,120]
[398954972,1766019048066,-469.5,0.00041095,120]
[398954973,1766019048077,-469.5,0.00041095,120]
[398954974,1766019048087,-469.5,0.00041095,120]
[398954975,1766019048096,-469.5,0.00041095,120]
[398954976,1766019048108,-469.5,0.00041095,120]
[398954977,1766019048117,-469.5,0.00041095,120]
[398954978,1766019048127,-469.5,0.00041095,120]
[398954979,1766019048136,-469.5,0.00041095,120]
[398954980,1766019048145,-469.5,0.00041095,120]
[398954981,1766019048154,-469.5,0.00041095,120]
[398954982,1766019048163,-469.5,0.00041095,120]
[398954983,1766019048172,-469.5,0.00041095,120]
[398954984,1766019048181,-469.5,0.00041095,120]
[398954985,1766019048190,-469.5,0.00041095,120]
[398954986,1766019048199,-469.5,0.00041095,120]
[398954987,1766019048208,-469.5,0.00041095,120]
[398954988,1766019048218,-469.5,0.00041095,120]
[398954989,1766019048227,-469.5,0.00041095,120]
[398954990,1766019048236,-469.5,0.00041095,120]
[398954991,1766019048246,-469.6911452,0.00041095,120]
[398954992,1766019048255,-1000.0,0.00041095,120]
[398954993,1766019048264,-1000.0,0.00041095,120]
[398954994,1766019048274,-1000.0,0.00041095,120]
[398954995,1766019048283,-1000.0,0.00041095,120]
[398954996,1766019048292,-1000.0,0.00041095,120]
[398954997,1766019048302,-1000.0,0.00041095,120]
[398954998,1766019048311,-1000.0,0.00041095,120]
[398954999,1766019048320,-1000.0,0.00041095,120]
[398955000,1766019048330,-300.0,0.00041095,2]
[398955001,1766019048340,-300.0,0.00041095,2]
[398955002,1766019048349,-300.0,0.00041095,2]
[398955003,1766019048358,-300.0,0.00041095,2]
[398955004,1766019048368,-300.0,0.00041095,2]
[398955005,1766019048377,-300.0,0.00041095,2]
[398955006,1766019048386,-300.0,0.00041095,2]
[398955007,1766019048395,-300.0,0.00041095,2]
[398955008,1766019048405,-200.0,0.00041096,20]
[398955009,1766019048414,-167.36306111,0.00041103,30]
[398955010,1766019048423,-150.0,0.00041103,30]
[398955011,1766019048432,-150.0,0.00041103,30]
[398955012,1766019048442,-150.0,0.00041124,30]
[398955013,1766019048451,-150.0,0.00041124,30]
[398955014,1766019048461,-150.0,0.00041145,30]
[398955015,1766019048472,-167.36306111,0.00041146,30]
[398955016,1766019048481,-150.0,0.00041151,30]
[398955017,1766019048490,-150.0,0.00041157,30]
[398955018,1766019048503,-150.0,0.00041188,30]
[398955019,1766019048512,-150.0,0.00041188,30]
[398955020,1766019048521,-167.36306111,0.00041189,30]
[398955021,1766019048531,-150.0,0.00041192,30]
[398955022,1766019048540,-150.0,0.00041198,30]
[398955023,1766019048550,-150.0,0.00041212,30]
[398955024,1766019048560,-150.0,0.00041212,30]
[398955025,1766019048569,-150.0,0.00041223,30]
[398955026,1766019048582,-167.36306111,0.00041232,30]
[398955027,1766019048592,-150.0,0.00041237,30]
[398955028,1766019048602,-150.0,0.00041251,30]
[398955029,1766019048611,-150.0,0.00041251,30]
[398955030,1766019048620,-691.17,0.0004126,30]
[398955031,1766019048630,-150.0,0.0004127,30]
[398955032,1766019048639,-3253.55987884,0.00041274,7]
[398955033,1766019048648,-167.36306111,0.00041275,30]
[398955034,1766019048657,-150.0,0.00041292,30]
[398955035,1766019048667,-150.0,0.00041295,30]
[398955036,1766019048676,-150.0,0.00041315,30]
[398955037,1766019048684,-150.0,0.00041315,30]
[398955038,1766019048693,-150.0,0.00041317,30]
[398955039,1766019048702,-167.36306111,0.00041318,30]
[398955040,1766019048711,-203.05469177,0.0004134,2]
[398955041,1766019048720,-167.36306111,0.00041361,30]
[398955042,1766019048729,-150.0,0.00041367,30]
[398955043,1766019048739,-150.0,0.00041376,30]
[398955044,1766019048748,-150.0,0.00041378,30]
[398955045,1766019048757,-150.0,0.00041378,30]
[398955046,1766019048767,-150.0,0.00041387,30]
[398955047,1766019048776,-150.0,0.00041387,30]
[398955048,1766019048785,-150.0,0.00041395,30]
[398955049,1766019048794,-150.0,0.00041397,30]
[398955050,1766019048804,-167.36306111,0.00041404,30]
[398955051,1766019048813,-150.0,0.0004144,30]
[398955052,1766019048822,-150.0,0.00041442,30]
[398955053,1766019048833,-150.0,0.00041442,30]
[398955054,1766019048842,-167.36306111,0.00041447,30]
[398955055,1766019048851,-150.0,0.00041458,30]
[398955056,1766019048860,-150.0,0.00041458,30]
[398955057,1766019048869,-150.0,0.00041458,30]
[398955058,1766019048878,-150.0,0.00041478,30]
[398955059,1766019048889,-150.0,0.00041481,30]
[398955060,1766019048900,-167.36306111,0.0004149,30]
[398955061,1766019048911,-150.0,0.00041505,30]
[398955062,1766019048921,-150.0,0.00041505,30]
[398955063,1766019048931,-150.0,0.00041512,30]
[398955064,1766019048940,-150.0,0.0004152,30]
[398955065,1766019049118,-167.36306111,0.00041533,30]
[398955066,1766019049135,-150.0,0.00041539,30]
[398955067,1766019049145,-150.0,0.00041539,30]
[398955068,1766019049154,-261.94942292,0.00041542,13]
[398955069,1766019049164,-261.94942284,0.00041542,13]
[398955070,1766019049173,-261.94942284,0.00041542,13]
[398955071,1766019049183,-261.94942284,0.00041542,13]
[398955072,1766019049192,-261.94942284,0.00041542,13]
[398955073,1766019049201,-261.94942284,0.00041542,13]
[398955074,1766019049210,-261.94942284,0.00041542,13]
[398955075,1766019049220,-261.94942284,0.00041542,13]
[398955076,1766019049230,-261.94942284,0.00041542,13]
[398955077,1766019049240,-261.94942284,0.00041542,13]
[398955078,1766019049249,-261.94942284,0.00041542,13]
[398955079,1766019049260,-261.94942284,0.00041542,13]
[398955080,1766019049269,-261.94942284,0.00041542,13]
[398955081,1766019049280,-261.94942284,0.00041542,13]
[398955082,1766019049289,-150.0,0.00041558,30]
[398955083,1766019049300,-150.0,0.00041569,30]
[398955084,1766019049309,-150.0,0.00041569,30]
[398955085,1766019049319,-167.36306111,0.00041576,30]
[398955086,1766019049330,-150.0,0.00041576,30]
[398955087,1766019049340,-203.05469177,0.00041583,2]
[398955088,1766019049351,-150.0,0.00041584,30]
[398955089,1766019049360,-2000.0,0.000416,7]
[398955090,1766019049370,-167.36306111,0.00041619,30]
[398955091,1766019049379,-150.0,0.00041632,30]
[398955092,1766019049389,-150.0,0.00041632,30]
[398955093,1766019049399,-150.0,0.00041638,30]
[398955094,1766019049408,-3804.9,0.00041643,120]
[398955095,1766019049417,-150.0,0.00041645,30]
[398955096,1766019049427,-150.0,0.00041656,30]
[398955097,1766019049437,-167.36306111,0.00041662,30]
[398955098,1766019049447,-150.0,0.0004167,30]
[398955099,1766019049457,-150.0,0.0004167,30]
[398955100,1766019049466,-150.0,0.00041696,30]
[398955101,1766019049475,-150.0,0.00041696,30]
[398955102,1766019049484,-500.0,0.00041699,7]
[398955103,1766019049493,-150.0,0.00041703,30]
[398955104,1766019049504,-167.36306111,0.00041704,30]
[398955105,1766019049514,-150.0,0.00041718,30]
[398955106,1766019049523,-150.0,0.00041723,30]
[398955107,1766019049534,-150.0,0.00041728,30]
[398955108,1766019049543,-167.36306111,0.00041747,30]
[398955109,1766019049553,-150.0,0.00041759,30]
[398955110,1766019049563,-150.0,0.00041759,30]
[398955111,1766019049572,-150.0,0.00041765,30]
[398955112,1766019049582,-203.05469177,0.00041769,2]
[398955113,1766019049592,-150.0,0.0004177,30]
[398955114,1766019049601,-167.36306111,0.0004179,30]
[398955115,1766019049610,-150.0,0.00041799,30]
[398955116,1766019049619,-150.0,0.000418,30]
[398955117,1766019049628,-150.0,0.00041822,30]
[398955118,1766019049637,-150.0,0.00041822,30]
[398955119,1766019049646,-167.36306111,0.00041833,30]
[398955120,1766019049655,-150.0,0.00041859,30]
[398955121,1766019049664,-150.0,0.00041866,30]
[398955122,1766019049673,-150.0,0.00041866,30]
[398955123,1766019049682,-150.0,0.00041872,30]
[398955124,1766019049691,-167.36306111,0.00041876,30]
[398955125,1766019049699,-150.0,0.00041879,30]
[398955126,1766019049709,-150.0,0.00041886,30]
[398955127,1766019049718,-150.0,0.00041886,30]
[398955128,1766019049727,-150.0,0.00041895,30]
[398955129,1766019049736,-167.36306111,0.00041919,30]
[398955130,1766019049745,-2878.92230328,0.00041939,2]
[398955131,1766019049755,-150.0,0.00041944,30]
[398955132,1766019049764,-150.0,0.00041949,30]
[398955133,1766019049773,-150.0,0.00041949,30]
[398955134,1766019049782,-150.0,0.00041954,30]
[398955135,1766019049791,-150.0,0.00041954,30]
[398955136,1766019049800,-150.0,0.00041959,30]
[398955137,1766019049809,-167.36306111,0.00041962,30]
[398955138,1766019049818,-1217.45,0.00041973,30]
[398955139,1766019049827,-150.0,0.00041989,30]
[398955140,1766019049836,-150.0,0.00041989,30]
[398955141,1766019049845,-167.36306111,0.00042005,30]
[398955142,1766019049855,-150.0,0.00042013,30]
[398955143,1766019049864,-150.0,0.00042013,30]
[398955144,1766019049873,-150.0,0.00042016,30]
[398955145,1766019049882,-150.0,0.0004202,30]
[398955146,1766019049891,-150.0,0.0004203,30]
[398955147,1766019049902,-150.0,0.00042039,30]
[398955148,1766019049911,-167.36306111,0.00042048,30]
[398955149,1766019049923,-150.0,0.00042048,30]
[398955150,1766019049933,-203.05469177,0.00042071,2]
[398955151,1766019049942,-150.0,0.00042076,30]
[398955152,1766019049951,-150.0,0.00042076,30]
[398955153,1766019049962,-150.0,0.00042088,30]
[398955154,1766019049972,-167.36306111,0.00042091,30]
[398955155,1766019049983,-150.0,0.00042119,30]
[398955156,1766019049992,-167.36306111,0.00042134,30]
[398955157,1766019050001,-150.0,0.0004214,30]